Cogmind - Beta 13 X2 @@@ ROGUE MODE // 2024.01.16 @ 13:45:48 Player: Minty Result: Destroyed by G-50 Soldier with Heavy Laser Performance ------------- Evolutions (5) 2500 Regions Visited (10) 2000 Robots Destroyed (67) 335 Value Destroyed (2671) 2671 Prototype IDs (2) 40 Alien Tech Used (0) 0 Bonus (555) 555 TOTAL SCORE: 8101 Bonus ------- Follower Combat Kills 154 Entered DSFs 500 Friendly Fire -99 Cogmind --------- Core Integrity 0/1000 Matter 441/450 Energy 98/100 System Corruption 1% Temperature Cool (9) Movement Core (50) Location -5/Extension Parts ------- > --- POWER (2) -------- (None) > --- PROPULSION (4) --- (None) > --- UTILITY (6) ------ Compact Matter Pod Graphene Brace > --- WEAPON (5) ------- (None) > --- INVENTORY (5) ---- Encrypted Comm Array Compact Ion Cannon Molecular Deconstructor Peak State ------------ > --- POWER ------------ Light Nuclear Core Reinforced Deuterium Engine > --- PROPULSION ------- Wheel Compact Wheel Armored Huge Wheel > --- UTILITY ---------- Advanced Heat Sink Advanced Heat Sink Encrypted Comm Array Hardened Medium Armor Plating Improved Light Armor Plating Graphene Brace > --- WEAPON ----------- High-powered Shock Rifle Heavy Phase Cannon Heavy Phase Cannon Molecular Deconstructor > --- INVENTORY -------- Light Armored Exoskeleton Compact Matter Pod Compact Ion Cannon Heavy Phase Cannon [Rating: 82] Favorites ----------- Power Light Nuclear Core Engine Reinforced Deuterium Engine Power Core Light Nuclear Core Propulsion Aluminum Leg Treads Light Treads Leg Aluminum Leg Wheel Wheel Utility Advanced Heat Sink Device Advanced Heat Sink Storage Small Storage Unit Processor Terrain Scan Processor Protection Hardened Medium Armor Plating Weapon Magnetic Acceleration Cannon Energy Gun Particle Gun Energy Cannon Heavy Ion Cannon Ballistic Gun Assault Rifle Ballistic Cannon Magnetic Acceleration Cannon Special Weapon Molecular Deconstructor Piercing Weapon Makeshift Spear Build | -11 -10 -10 -8 -7 -7 -6 -6 -6 -5 -5 ------- Run | Yrd Mat Sub Mat Fac DSF Fac Low Low Fac Ext Slots Evolved 10 | . . . 4 2 . 2 . . 2 . Power 1 | . . . 1 . . . . . . . Propulsion 2 | . . . 1 . . . . . 1 . Utility 4 | . . . 1 1 . 1 . . 1 . Weapon 3 | . . . 1 1 . 1 . . . . Parts Attached 114 | . 1 17 44 1 21 13 4 . 11 2 Power 16 | . . 2 8 . 4 . . . 2 . Engine 5 | . . 2 2 . 1 . . . . . Core 11 | . . . 6 . 3 . . . 2 . Reactor . | . . . . . . . . . . . Propulsion 21 | . . 2 10 . 5 2 . . 2 . Treads 2 | . . . 2 . . . . . . . Leg 13 | . . . 8 . 5 . . . . . Wheel 6 | . . 2 . . . 2 . . 2 . Hover . | . . . . . . . . . . . Flight . | . . . . . . . . . . . Utility 25 | . 1 3 10 1 4 2 1 . 2 1 Device 19 | . 1 2 9 . 3 1 1 . 2 . Storage 2 | . . . 1 . . . . . . 1 Processor 2 | . . 1 . 1 . . . . . . Hackware . | . . . . . . . . . . . Protection 2 | . . . . . 1 1 . . . . Artifact . | . . . . . . . . . . . Weapon 52 | . . 10 16 . 8 9 3 . 5 1 Energy Gun 8 | . . 3 2 . . 1 1 . 1 . Energy Cannon 16 | . . . 4 . 3 5 . . 4 . Ballistic Gun 4 | . . 2 2 . . . . . . . Ballistic Cannon 15 | . . 1 5 . 5 3 1 . . . Launcher . | . . . . . . . . . . . Special Weapon 7 | . . 4 1 . . . 1 . . 1 Impact Weapon . | . . . . . . . . . . . Slashing Weapon . | . . . . . . . . . . . Piercing Weapon 2 | . . . 2 . . . . . . . Special Melee Weapon . | . . . . . . . . . . . Unidentified Prototypes 2 | . . . . . . 1 1 . . . Parts Lost 48 | . . 4 18 . 10 2 1 . 13 . Power 11 | . . 1 3 . 3 . 1 . 3 . Propulsion 9 | . . . 4 . 1 1 . . 3 . Utility 9 | . . . 4 . . 1 . . 4 . Weapon 19 | . . 3 7 . 6 . . . 3 . Highest Loss Streak 13 | . . 1 7 . 7 1 1 . 13 . To Critical Strikes . | . . . . . . . . . . . Average Slot Usage (%) 85 | . 98 98 87 92 78 91 88 80 64 7 Engine 6 | . 14 12 4 . 1 6 6 6 4 . Core 4 | . . . 8 15 6 6 2 . 2 . Leg 10 | . 28 7 18 15 14 9 . . . . Wheel 7 | . . 20 3 . . 1 13 13 9 . Device 17 | . 12 13 14 15 16 23 20 20 19 5 Storage 1 | . 14 . . . . . . . . 1 Processor 5 | . . 13 9 15 12 . . . . . Protection 4 | . . . . . 1 8 13 13 7 . Energy Gun 5 | . 14 9 6 7 1 . 5 . 2 . Energy Cannon 7 | . . . 8 7 5 5 19 13 9 . Ballistic Gun 3 | . 14 8 4 . . . . . . . Ballistic Cannon 8 | . . 4 3 7 17 27 6 6 . . Special Weapon 1 | . . 6 . . . . . 6 3 . Naked Turns . | . . . . . . . . . . . Heaviest Build 74 | 12 13 12 32 27 63 74 65 55 65 7 Greatest Support 60 | 20 20 20 43 25 45 42 38 38 60 3 Greatest Overweight (x) 6 | . . . 1 1 1 6 1 1 1 2 Average Overweight (x) . | . . . . 1 . 1 1 1 . . Largest Inventory Capacity 8 | 8 8 8 5 5 5 5 5 5 5 5 Average Capacity 5 | 8 8 5 5 5 5 5 5 5 5 5 Most Carried 8 | 6 8 7 5 4 5 5 5 5 5 5 Average Carried 4 | 6 7 4 4 4 4 4 4 5 4 4 Final Capacity 8 | 8 8 5 5 5 5 5 5 5 5 5 Final Carried 7 | 6 7 5 5 4 5 5 5 5 5 4 Class Distribution -------------------- 42% | Scavenger-Tank 32% | Mutant 9% | Scavenger-Skirmisher 7% | Scavenger-Mutant 4% | Scavenger-Gunner Dominant Class ---------------- Mutant | -10/Materials Mutant | -10/Subcaves Scavenger-Skirmisher | -8/Materials Scavenger-Skirmisher | -7/Factory Scavenger-Mutant | -7/DSF Scavenger-Tank | -6/Factory Scavenger-Tank | -6/Lower Caves Scavenger-Tank | -6/Lower Caves Scavenger-Tank | -5/Factory Mutant | -5/Extension Resources | -11 -10 -10 -8 -7 -7 -6 -6 -6 -5 -5 ----------- Run | Yrd Mat Sub Mat Fac DSF Fac Low Low Fac Ext Matter Collected 2491 | 197 70 249 594 43 480 265 400 . 169 24 Remotely 489 | . . . . . 393 96 . . . . Salvage Created 2627 | . 178 280 826 . 289 184 476 . 394 . Parts 133 | . 14 15 41 . 14 12 19 . 18 . Haulers Intercepted . | . . . . . . . . . . . Recyclers Shooed 3 | . . . 2 . . . . . 1 . Parts Field Recycled . | . . . . . . . . . . . Retrieved Matter . | . . . . . . . . . . . Parts Self-Destructed 16 | . . . . . . . 16 . . . Prevented 6 | . . . . . . . 6 . . . Kills | -11 -10 -10 -8 -7 -7 -6 -6 -6 -5 -5 ------- Run | Yrd Mat Sub Mat Fac DSF Fac Low Low Fac Ext Combat Hostiles Destroyed 60 | . 5 6 21 . 9 5 9 . 5 . Melee 5 | . . . 5 . . . . . . . Guns 23 | . 5 5 10 . . . 2 . 1 . Cannons 26 | . . . 5 . 9 5 6 . 1 . AOE 1 | . . . 1 . . . . . . . Classes Destroyed 15 | . 4 2 3 . 2 4 . . . . Worker 2 | . . . . . . 1 . . 1 . Builder 1 | . 1 . . . . . . . . . Recycler 2 | . . . 1 . . . . . 1 . Operator 1 | . . . . . . 1 . . . . Watcher 1 | . 1 . . . . . . . . . Swarmer 13 | . 3 . 6 . . . 3 . 1 . Grunt 20 | . 2 . 11 . 3 2 1 . 1 . Brawler 2 | . . . . . . 1 1 . . . Duelist 2 | . . . . . 1 . 1 . . . Sentry 5 | . . . 3 . . . 1 . 1 . Specialist 4 | . . . . . 4 . . . . . Hunter 6 | . . . 1 . 1 . 2 . 2 . Programmer 2 | . . . . . . 2 . . . . Artisan 1 | . . 1 . . . . . . . . Subdweller 6 | . . 6 . . . . . . . . Best Kill Streak 7 | . 3 2 7 . 5 2 4 . 2 . Combat Bots Only 7 | . 3 2 7 . 5 2 4 . 1 . Max Kills in Single Turn 2 | . 2 1 2 . 1 1 1 . 1 . Gunslinging 1 | . 1 . . . . . . . . . Exploded 1 | . . . 1 . . . . . . . Melee 1 | . . . 1 . . . . . . . Uniques/NPCs Destroyed . | . . . . . . . . . . . Combat | -11 -10 -10 -8 -7 -7 -6 -6 -6 -5 -5 -------- Run | Yrd Mat Sub Mat Fac DSF Fac Low Low Fac Ext Hostile Shots Fired 699 | . 32 29 165 . 222 19 29 . 156 47 Missed 212 | . 9 9 33 . 81 3 6 . 49 22 Damage Taken 8383 | . 187 535 2442 . 1973 310 440 . 1901 595 Core 1930 | . 15 206 437 . 213 15 30 . 515 499 Absorbed by Shields 28 | . . . . . 28 . . . . . Core Remaining (%) 58 | 100 . 11 20 . 69 . . 94 . . Volleys Fired 206 | . 19 34 64 . 25 19 16 . 28 1 Largest 5 | . 2 2 3 . 4 5 5 . 3 1 Hottest 358 | . 70 140 190 . 239 336 358 . 270 . Shots Fired 513 | . 38 61 162 . 77 60 49 . 65 1 Gun 192 | . 38 55 71 . 4 . 13 . 11 . Cannon 312 | . . 5 90 . 73 60 36 . 48 . Launcher . | . . . . . . . . . . . Special 9 | . . 1 1 . . . . . 6 1 Kinetic 224 | . 19 29 61 . 50 54 11 . . . Thermal 240 | . 19 31 101 . 27 4 14 . 44 . Explosive . | . . . . . . . . . . . Electromagnetic 42 | . . 1 . . . 2 24 . 15 . Robot Hit Streak 13 | . 4 11 13 . 8 3 6 . 8 . Robot Miss Streak 7 | . 6 2 7 . 3 5 5 . 4 1 Penetration Max . | . . . . . . . . . . . Secondary Targets 1 | . 1 . . . . . . . . . Max Gunslinging Chain 1 | . 1 . . . . . . . . . Shots Hit Robots 284 | . 17 38 107 . 38 22 21 . 41 . Core Hits 115 | . 9 13 41 . 15 10 16 . 11 . Critical Kills 2 | . . . . . . . 1 . 1 . Critical Parts Destroyed 2 | . 1 . 1 . . . . . . . Critical Strikes 15 | . 2 1 4 . 3 1 2 . 2 . Burn 4 | . 1 1 1 . . . 1 . . . Meltdown 2 | . . . . . . . 1 . 1 . Destroy 2 | . 1 . 1 . . . . . . . Blast 4 | . . . . . 3 1 . . . . Corrupt 1 | . . . . . . . . . 1 . Impale 2 | . . . 2 . . . . . . . Melee Attacks 15 | . . . 15 . . . . . . . Impact . | . . . . . . . . . . . Slashing . | . . . . . . . . . . . Piercing 15 | . . . 15 . . . . . . . Sneak Attacks 1 | . . . 1 . . . . . . . Combat Hostiles . | . . . . . . . . . . . Follow-up Attacks . | . . . . . . . . . . . Damage Inflicted 6712 | . 251 552 1972 . 1056 706 842 . 1333 . Guns 1827 | . 246 477 764 . 18 . 156 . 166 . Cannons 4230 | . . 15 818 . 1038 690 540 . 1129 . Explosions 295 | . . 48 110 . . . 137 . . . Melee 268 | . . . 268 . . . . . . . Ramming 75 | . 5 . 7 . . 16 9 . 38 . Kinetic 2512 | . 122 186 701 . 689 656 158 . . . Thermal 3319 | . 124 355 996 . 367 28 373 . 1076 . Explosive . | . . . . . . . . . . . Electromagnetic 538 | . . 11 . . . 6 302 . 219 . Impact . | . . . . . . . . . . . Slashing . | . . . . . . . . . . . Piercing 268 | . . . 268 . . . . . . . Highest Corruption 2 | . . . . . . 2 2 2 1 1 Average Corruption 1 | . . . . . . 1 2 2 1 1 Corruption Purged . | . . . . . . . . . . . Corruption Blocked . | . . . . . . . . . . . Effects 11 | . . . . . . 4 6 . . 1 Message Errors 3 | . . . . . . 1 2 . . . Matter Fused 2 | . . . . . . 1 1 . . . Heat Flow Errors 3 | . . . . . . 1 1 . . 1 Data Loss (minor) 2 | . . . . . . 1 1 . . . Misfires 1 | . . . . . . . 1 . . . Overload Shots . | . . . . . . . . . . . Overflow Damage 132 | . . 5 86 . . . . . 41 . Projectiles 38 | . . . . . . . . . 38 . Explosions 72 | . . 5 67 . . . . . . . Melee 22 | . . . 19 . . . . . 3 . Knockbacks 17 | . . . . . 9 7 1 . . . Impact . | . . . . . . . . . . . Kinetic 17 | . . . . . 9 7 1 . . . Secondary . | . . . . . . . . . . . Self-Inflicted Damage 197 | . . 47 73 . . 8 51 . 18 . Shots 3 | . . 1 1 . . . 1 . . . Rammed 6 | . . . . . . 1 1 . 4 . Targets Rammed 9 | . 1 . 2 . . 1 1 . 4 . Kicked 3 | . 1 . 2 . . . . . . . Crushed . | . . . . . . . . . . . Highest Temperature 528 | . 69 30 379 . 334 376 467 . 528 122 Average Temperature 124 | . 35 15 82 . 114 172 191 . 124 73 Received Heat Transfer 1983 | . 24 54 981 . 357 90 18 . 360 99 Effects 7 | . . . . . . . 4 . 3 . Shutdowns 3 | . . . . . . . 3 . . . Energy Bleed 1 | . . . . . . . . . 1 . Damage (minor) 3 | . . . . . . . 1 . 2 . Siege Activations . | . . . . . . . . . . . Robots Corrupted 1 | . . . . . . . . . 1 . Combat Hostiles 1 | . . . . . . . . . 1 . Parts Fried 5 | . . . . . . . 3 . 2 . Impact Corruptions 1 | . . . . . . . . . 1 . Robots Melted 3 | . . 1 . . . . 1 . 1 . Combat Hostiles 3 | . . 1 . . . . 1 . 1 . Parts Melted 17 | . 1 5 2 . . . 4 . 5 . Heat Transferred 5252 | . 444 909 1551 . 518 37 609 . 1184 . Parts Sabotaged . | . . . . . . . . . . . Parts Stolen . | . . . . . . . . . . . Parts Stripped . | . . . . . . . . . . . Power Chain Reactions 2 | . . 1 . . . . 1 . . . Missiles Intercepted . | . . . . . . . . . . . Alert | -11 -10 -10 -8 -7 -7 -6 -6 -6 -5 -5 ------- Run | Yrd Mat Sub Mat Fac DSF Fac Low Low Fac Ext Peak Influence 387 | . 122 . 387 180 252 156 . . 332 85 Initial 175 | . . . . 175 126 132 . . 65 40 Average 143 | . 95 . 181 175 186 68 . . 224 63 Maximum Alert Level 1 | . . . 1 . 1 . . . 1 . Low Security (%) 70 | 100 100 . 53 100 59 100 . . 23 100 Level 1 29 | . . . 46 . 40 . . . 76 . Level 2 . | . . . . . . . . . . . Level 3 . | . . . . . . . . . . . Level 4 . | . . . . . . . . . . . Level 5 . | . . . . . . . . . . . High Security . | . . . . . . . . . . . Max Security . | . . . . . . . . . . . Sterilizations 1 | . . . . . 1 . . . . . Squads Dispatched 18 | . . . 8 . 2 2 . . 6 . Investigation 6 | . . . 2 . . 1 . . 3 . Extermination 1 | . . . . . . 1 . . . . Reinforcement 10 | . . . 5 . 2 . . . 3 . Assault 1 | . . . 1 . . . . . . . Garrison . | . . . . . . . . . . . Intercept . | . . . . . . . . . . . Searches Triggered . | . . . . . . . . . . . Construction Impeded 2 | . . . 1 . . . . . 1 . Haulers Reinforced . | . . . . . . . . . . . Active Scanning Responses . | . . . . . . . . . . . Cargo Convoy Interrupts . | . . . . . . . . . . . Stealth | -11 -10 -10 -8 -7 -7 -6 -6 -6 -5 -5 --------- Run | Yrd Mat Sub Mat Fac DSF Fac Low Low Fac Ext Distress Signals 5 | . 1 . 3 . . . 1 . . . Communications Jammed . | . . . . . . . . . . . Distress Signals . | . . . . . . . . . . . Times Spotted 117 | . 6 8 35 . 10 7 14 . 28 9 Peak Tracking Total 8 | . 3 2 6 . 7 3 7 . 8 8 Tactical Retreats 5 | . . . . . . 1 3 . 1 . Traps | -11 -10 -10 -8 -7 -7 -6 -6 -6 -5 -5 ------- Run | Yrd Mat Sub Mat Fac DSF Fac Low Low Fac Ext Traps Triggered 5 | . . 2 1 . 2 . . . . . Indirectly . | . . . . . . . . . . . Trap Hack Attempts . | . . . . . . . . . . . Triggered . | . . . . . . . . . . . Disarmed . | . . . . . . . . . . . Reprogrammed 6 | . 6 . . . . . . . . . Reused 2 | . . . 2 . . . . . . . Traps Extracted . | . . . . . . . . . . . Installed 3 | . . . 3 . . . . . . . Triggered 1 | . . . 1 . . . . . . . Most Traps Carried 3 | . . 3 3 . . . . . . . Machines | -11 -10 -10 -8 -7 -7 -6 -6 -6 -5 -5 ---------- Run | Yrd Mat Sub Mat Fac DSF Fac Low Low Fac Ext Machines Disabled 7 | . . . 5 . 1 . 1 . . . Max in Single Turn 4 | . . . 4 . 1 . 1 . . . Garrison Access 1 | . . . 1 . . . . . . . Machines Repaired . | . . . . . . . . . . . Machines Dismantled . | . . . . . . . . . . . Machines Sabotaged . | . . . . . . . . . . . Overloaded Fab Kills . | . . . . . . . . . . . Hacking | -11 -10 -10 -8 -7 -7 -6 -6 -6 -5 -5 --------- Run | Yrd Mat Sub Mat Fac DSF Fac Low Low Fac Ext Machines Accessed 14 | . 2 1 3 1 . 4 . . 3 . Terminals 8 | . 2 . 2 1 . 3 . . . . Fabricators . | . . . . . . . . . . . Repair Stations 3 | . . . 1 . . . . . 2 . Recycling Units 1 | . . . . . . . . . 1 . Scanalyzers 1 | . . . . . . 1 . . . . Garrison Access . | . . . . . . . . . . . Total Hacks 42 | . 8 4 12 1 . 7 . . 10 . Successful 21 | . 4 4 6 1 . 4 . . 2 . Failed 21 | . 4 . 6 . . 3 . . 8 . Catastrophic 4 | . 1 . 1 . . . . . 2 . Database Lockouts . | . . . . . . . . . . . Manual 10 | . 4 . 2 . . 2 1 . 1 . Terminals 23 | . 8 . 9 1 . 5 . . . . Fabricators . | . . . . . . . . . . . Repair Stations 9 | . . . 3 . . . . . 6 . Recycling Units 4 | . . . . . . . . . 4 . Scanalyzers 2 | . . . . . . 2 . . . . Garrison Access . | . . . . . . . . . . . Terminal Hacks 15 | . 4 4 4 1 . 2 . . . . Record 4 | . . 4 . . . . . . . . Open DSF 1 | . . . . 1 . . . . . . Branch Access Points 1 | . . . 1 . . . . . . . Terminal Index 1 | . . . 1 . . . . . . . Alert Level 2 | . . . 1 . . 1 . . . . Unreport Threat 1 | . . . . . . 1 . . . . Locate Traps 1 | . 1 . . . . . . . . . Reprogram Traps 1 | . 1 . . . . . . . . . Zone Layout 3 | . 2 . 1 . . . . . . . Fabricator Hacks . | . . . . . . . . . . . Repair Station Hacks 1 | . . . 1 . . . . . . . Scan Component 1 | . . . 1 . . . . . . . Recycling Unit Hacks 1 | . . . . . . . . . 1 . Report Inventory 1 | . . . . . . . . . 1 . Scanalyzer . | . . . . . . . . . . . Garrison Access Hacks . | . . . . . . . . . . . Unauthorized Hacks 4 | . . . 1 . . 2 . . 1 . Terminals 3 | . . . 1 . . 2 . . . . Botnet 3 | . . . 1 . . 2 . . . . Fabricators . | . . . . . . . . . . . Repair Stations . | . . . . . . . . . . . Recycling Units 1 | . . . . . . . . . 1 . Tunnel 1 | . . . . . . . . . 1 . Scanalyzers . | . . . . . . . . . . . Garrison Access . | . . . . . . . . . . . Data Cores Recovered 1 | . . . . . . 1 . . . . Used . | . . . . . . . . . . . Hacking Detections 13 | . 2 . 3 1 . 4 . . 3 . Full Trace Events 5 | . 1 . 1 . . 1 . . 2 . Feedback Events 1 | . . . . . . . . . 1 . Corruption 1 | . . . . . . . . . 1 . Feedback Blocked . | . . . . . . . . . . . Robot Schematics Acquired . | . . . . . . . . . . . Robots Built . | . . . . . . . . . . . Authchips . | . . . . . . . . . . . Time . | . . . . . . . . . . . Total Robot Build Rating . | . . . . . . . . . . . Part Schematics Acquired . | . . . . . . . . . . . Parts Built . | . . . . . . . . . . . Authchips . | . . . . . . . . . . . Time . | . . . . . . . . . . . Total Part Build Rating . | . . . . . . . . . . . Parts Repaired . | . . . . . . . . . . . Time . | . . . . . . . . . . . Parts Recycled . | . . . . . . . . . . . Recycled Matter . | . . . . . . . . . . . Retrieved Matter . | . . . . . . . . . . . Retrieved Components . | . . . . . . . . . . . Parts Scanalyzed . | . . . . . . . . . . . Part Schematics Acquired . | . . . . . . . . . . . Parts Damaged . | . . . . . . . . . . . Bothacking | -11 -10 -10 -8 -7 -7 -6 -6 -6 -5 -5 ------------ Run | Yrd Mat Sub Mat Fac DSF Fac Low Low Fac Ext Used RIF Installer . | . . . . . . . . . . . Robots Hacked . | . . . . . . . . . . . Non-combat . | . . . . . . . . . . . Combat . | . . . . . . . . . . . Robot Hacks Applied . | . . . . . . . . . . . Relay Couplers Released 2 | . . . 2 . . . . . . . Machine Destruction 2 | . . . 2 . . . . . . . Fabnet Peak Effective % . | . . . . . . . . . . . Robots Rewired 2 | . . . . . . . 2 . . . Allies Hacked . | . . . . . . . . . . . Hacks Repelled . | . . . . . . . . . . . Allies | -11 -10 -10 -8 -7 -7 -6 -6 -6 -5 -5 -------- Run | Yrd Mat Sub Mat Fac DSF Fac Low Low Fac Ext Total Allies 2 | . . . . . . . 2 . . . Largest Group 2 | . . . . . . . 2 2 2 . Highest-Rated Group 59 | . . . . . . . 59 59 59 . Highest-Rated Ally 30 | . . . . . . . 30 30 30 . Warlord Squad Rendezvous 1 | . . . . . . . . . 1 . Infantry 1 | . . . . . . . . . 1 . Total Orders . | . . . . . . . . . . . Ally Attacks 29 | . . . . . . . 12 . 17 . Total Damage 682 | . . . . . . . 256 . 426 . Kills 6 | . . . . . . . 2 . 4 . Allies Corrupted . | . . . . . . . . . . . Allies Melted . | . . . . . . . . . . . Intel | -11 -10 -10 -8 -7 -7 -6 -6 -6 -5 -5 ------- Run | Yrd Mat Sub Mat Fac DSF Fac Low Low Fac Ext Robot Analysis Total . | . . . . . . . . . . . Derelict Logs Recovered 2 | . . 1 . . . . 1 . . . Drone Launches . | . . . . . . . . . . . Drone Recoveries . | . . . . . . . . . . . Exploration | -11 -10 -10 -8 -7 -7 -6 -6 -6 -5 -5 ------------- Run | Yrd Mat Sub Mat Fac DSF Fac Low Low Fac Ext Turns Passed 3856 | 2 316 630 787 53 267 693 561 37 413 97 Spaces Moved 2491 | 2 133 573 396 28 88 305 450 32 309 175 Core 242 | . . . . . . . . . 67 175 Treads . | . . . . . . . . . . . Legs 843 | 2 133 69 308 28 88 215 . . . . Wheels 1406 | . . 504 88 . . 90 450 32 242 . Hover . | . . . . . . . . . . . Flight . | . . . . . . . . . . . Fastest Speed 50 | 120 120 80 80 190 115 105 105 105 50 50 Average Speed 112 | 120 120 84 119 190 154 201 105 105 93 52 Slowest Speed 360 | 120 120 120 190 190 250 360 105 105 115 150 Overloaded Moves . | . . . . . . . . . . . Propulsion Burnouts . | . . . . . . . . . . . Robots Hopped . | . . . . . . . . . . . Cave-ins Triggered . | . . . . . . . . . . . Exploration Rate (%) 23 | 2 15 26 37 1 53 4 65 5 8 39 Regions Visited 10 Branch Regions 4 Pre-discovered Areas 4 | . . 2 . . . . 1 . 1 . Known Exits Taken 1 | . . . . 1 . . . . . . Unknown Exits Taken 8 | 1 1 1 1 . . 1 1 1 1 . Scrap Searched 14 | . . 12 . . . . 2 . . . Spaces Dug . | . . . . . . . . . . . Terrain Destroyed 118 | . . 10 68 . 1 22 9 . 8 . Melee . | . . . . . . . . . . . Projectile 45 | . . . 8 . 1 22 6 . 8 . AOE 73 | . . 10 60 . . . 3 . . . Terrain Rammed . | . . . . . . . . . . . Walls Destroyed . | . . . . . . . . . . . Machines Disabled . | . . . . . . . . . . . Actions | -11 -10 -10 -8 -7 -7 -6 -6 -6 -5 -5 --------- Run | Yrd Mat Sub Mat Fac DSF Fac Low Low Fac Ext Total 3122 | 1 253 659 560 28 165 352 513 35 377 179 Wait 133 | . 89 4 8 . 8 2 9 4 9 . Move 2481 | 1 132 572 395 27 87 304 449 31 308 175 Hop . | . . . . . . . . . . . Pick Up 42 | . 6 12 7 . 5 5 3 . 4 . Fast Attach 59 | . 1 6 27 . 12 5 3 . 5 . Attach 24 | . . 2 7 1 3 5 . . 4 2 Detach 18 | . . 2 5 . 4 1 . . 5 1 Swap 31 | . . 9 10 . 6 3 1 . 2 . Drop 70 | . 5 18 17 . 8 7 7 . 8 . Fire 206 | . 19 34 64 . 25 19 16 . 28 1 Melee 15 | . . . 15 . . . . . . . Ram 6 | . . . . . . 1 1 . 4 . Kick 3 | . 1 . 2 . . . . . . . Crush . | . . . . . . . . . . . Escape Stasis 7 | . . . . . 7 . . . . . Rewire 24 | . . . . . . . 24 . . . Trap 3 | . . . 3 . . . . . . . Miscellaneous . | . . . . . . . . . . . Route ------- -11/Scrapyard -10/Materials -10/Subcaves -8/Materials -7/Factory (discovered 5 exits: Fac x2 / Low x2 / DSF) -7/DSF -6/Factory -6/Lower Caves -6/Lower Caves -5/Factory -5/Extension History --------- Turn | Location | Event 1 | -11/Scrapyard | Discovered new exit (range 1) 3 | -11/Scrapyard | Entered Materials 300 | -10/Materials | Discovered new exit (range 7) 303 | -10/Materials | Build established: Mutant 319 | -10/Materials | Entered Subcaves 432 | -10/Subcaves | Ambushed by angry Subdweller bent on revenge 454 | -10/Subcaves | Core integrity fell below 50% 501 | -10/Subcaves | Disturbed a concealed Subdweller 597 | -10/Subcaves | Discovered new exit (range 12) 608 | -10/Subcaves | Learned location of Zion (-6) 608 | -10/Subcaves | Met a Zionite searching for "candidates" 699 | -10/Subcaves | Visited Clippyterm 701 | -10/Subcaves | Learned 40 Factory zone layouts 897 | -10/Subcaves | Core integrity fell below 20% 911 | -10/Subcaves | Shifting Twisted Machinery released Mak. System Shield 949 | -10/Subcaves | Entered Materials 949 | -8/Materials | Evolved 4 slots: Power x1, Propulsion x1, Utility x1, Weapon x1 1100 | -8/Materials | Destroyed 7 combat bots 1253 | -8/Materials | Lost 3 parts (1p1u1w) 1290 | -8/Materials | Met 7R-MNS 1311 | -8/Materials | Attacked by 7R-MNS 1368 | -8/Materials | Lost 7 parts (2p2n1u2w) 1403 | -8/Materials | Core integrity fell below 50% 1414 | -8/Materials | 7R-MNS lamented failing the tripod run 1469 | -8/Materials | Lost 5 parts (1n1u3w) 1628 | -8/Materials | Discovered new exit (range 15) 1736 | -8/Materials | Entered Factory 1736 | -7/Factory | Evolved 2 slots: Utility x1, Weapon x1 1737 | -7/Factory | Identified exit to Factory 1737 | -7/Factory | Identified exit to Lower Caves 1783 | -7/Factory | Identified exit to DSF 1789 | -7/Factory | Entered DSF 1823 | -7/DSF | Additional patrols routed to DSF 1854 | -7/DSF | Lost 3 parts (1p2w) 1861 | -7/DSF | Discovered exit to Factory (range 11) 1974 | -7/DSF | Lost 7 parts (2p1n4w) 2026 | -7/DSF | Sterilization system engaged 2046 | -7/DSF | Ambient heat levels rising (+10) 2056 | -7/DSF | Entered Factory 2056 | -6/Factory | Evolved 2 slots: Utility x1, Weapon x1 2277 | -6/Factory | Discovered new exit (range 9) 2278 | -6/Factory | Build established: Scavenger-Tank 2749 | -6/Factory | Entered Lower Caves 2755 | -6/Lower Caves | Met a Warlord Commander 2756 | -6/Lower Caves | Learned location of Warlord (-4) 2790 | -6/Lower Caves | Found Encrypted Comm Array 2817 | -6/Lower Caves | Attracted the attention of an 0b10 outpost 3242 | -6/Lower Caves | Learned Factory non-interactive machine intel 3275 | -6/Lower Caves | Acquired the password to a Derelict Tinkerer's latest research 3283 | -6/Lower Caves | Found Prototype Special Weapon 3283 | -6/Lower Caves | Identified Molecular Deconstructor 3301 | -6/Lower Caves | Discovered new exit (range 8) 3310 | -6/Lower Caves | Entered another Lower Caves area 3310 | -6/Lower Caves | Accompanied by 2 allies 3319 | -6/Lower Caves | Discovered new exit (range 5) 3347 | -6/Lower Caves | Entered Factory 3347 | -5/Factory | Accompanied by 2 allies 3347 | -5/Factory | Evolved 2 slots: Propulsion x1, Utility x1 3348 | -5/Factory | Loaded intel: 217 non-interactive machine locations 3673 | -5/Factory | Discovered new exit (range 5) 3723 | -5/Factory | Joined by Warlord Infantry squad 3746 | -5/Factory | Lost 13 parts (3p3n4u3w) 3760 | -5/Factory | Core integrity fell below 50% 3760 | -5/Factory | Entered Extension 3798 | -5/Extension | Spotted B-75 Beast 3810 | -5/Extension | Spotted B-75 Beast 3819 | -5/Extension | Core integrity fell below 20% 3857 | -5/Extension | Destroyed by G-50 Soldier with Heavy Laser Last Messages --------------- 03735_ Penetrated by Slug. 03749_ Connecting with Repair Station... 03749_ ALERT: Suspicious activity at Repair Station F001. Dispatching Investigation squad. 03757_ Slammed into G-50 Soldier. 03757_ Slug penetrates Wall. 03759_ Penetrated by Slug. LOCATION=UNKNOWN GOAL=ESCAPE 03812_ Slug penetrates R-10 Processor. 03813_ Door Terminal disabled. 03814_ Penetrated by Slug. 03815_ System corrupted: Heat flow error (+162). 03817_ B-75 Beast suffers critical hit (Meltdown). 03820_ Slug penetrates Wall. 03823_ Penetrated by Slug. 03825_ Slug penetrates Wall. 03826_ Acquired 1 matter. 03856_ T-07 Excavator destroyed. 03857_ Acquired 23 matter. Map ----- +----------------------------------------------------+ | ???????????????????????????????????????????? | | ???????????????????????????????????????????? | | ???????????????????????????????????????????? | | ???????????????????????????????????????????? | | ???????????????????????????????????????????? | | ???????????????????????????????????????????? | | ???????????????????????????????????????????? | | ???????????????????????????????????????????? | | ???????????????????????????????????????????? | | ???????????????????????????????????????????? | | ???????????????????????????????????????????? | | ???????????????????????????????????????????? | | ???????????????????????????????????????????? | | ???????????????????????????????????????????? | | ???????????????????????????????????????????? | | ???????????????????????????????????????????? | | ???????????????????????????????????????????? | | ???????????????????????????????????????????? | | ????????????????????????????????????#??????? | | ?????????????????????????????????? "" ?????? | | ################################# " "????? | | gg g ???? | | g ???? | | g ??? | | =!! ??? | | ku * @ ??? | | ################################# = ??? | | ???????????????????????????????????????????? | | ???????????????????????????????????????????? | | ???????????????????????????????????????????? | | ???????????????????????????????????????????? | | ???????????????????????????????????????????? | | ???????????????????????????????????????????? | | ???????????????????????????????????????????? | | | | | | | | | | | | | | | | | | | | | | | | | | | | | | | | | +----------------------------------------------------+ Best States ------------- Heat Dissipation 78 Energy Generation 25 Energy Capacity 350 Matter Stores 418 Matter Capacity 450 Sight Range 16 Terrain Scan Range 16 Terrain Scan Density 160 Armor Coverage 375 Weapon Cycling 15 Evasion (%) 55 Recoil Reduction 1 Item Schematics ----------------- None Robot Schematics ------------------ None Fabricated ------------ Nothing Alien Tech Used ----------------- None Achievements -------------- None Challenges ------------ None Game ------ Seed MappingThunderCharger Manual? 0 Play Time 00:33:36 Cumulative 599.3 hours Start 2024.01.16 @ 13:12:28 End 2024.01.16 @ 13:45:48 Sessions 1 Manual Loads 0 Difficulty Rogue Special Mode None Game No. 534 Rogue 261 Adventurer 123 Explorer 150 Win Type - Total 25 Types 19/0/4/1/0/0/0/1/0 Lore% 79 Gallery% 90 Achievement% 75 Wizard Run 0 Options --------- ASCII 0 Keyboard 1 Movement Numpad Keybinds 0 Fullscreen 2 Font 18/X11Bold Map View 76x50 Zoom Use 13% Tactical HUD 1 Map Filters NONE Filters NONE Steam 1 RUN: f4fbc810-b785-47f8-a87a-d8a20e5098e7